fUST/lending_fUST_20260117
["ID","MTS","AMOUNT","RATE_DAILY","PERIOD"]
[402308500,1768653071698,-1112.08,0.00016986,3]
[402308501,1768653071708,-612.1,0.00016986,3]
[402308502,1768653071719,-500.0,0.00016986,3]
[402308503,1768653071729,-475.6932178,0.00016986,3]
[402308504,1768653071740,-500.0,0.00016986,3]
[402308505,1768653071750,-533.11445004,0.00016986,3]
[402308506,1768653071761,-1670.51,0.00016986,3]
[402308507,1768653071772,-1806.23,0.00016986,3]
[402308508,1768653071782,-974.97,0.00016986,3]
[402308509,1768653071791,-500.0,0.00016986,3]
[402308510,1768653071801,-566.52,0.00016986,3]
[402308511,1768653071810,-500.0,0.00016986,3]
[402308512,1768653071820,-508.15,0.00016986,3]
[402308513,1768653071830,-500.0,0.00016986,3]
[402308514,1768653071840,-1170.72,0.00016986,3]
[402308515,1768653071849,-626.5,0.00016986,3]
[402308516,1768653071859,-1530.01,0.00016986,3]
[402308517,1768653071868,-500.0,0.00016986,3]
[402308518,1768653071877,-500.0,0.00016986,3]
[402308519,1768653071887,-1016.59,0.00016986,3]
[402308520,1768653071897,-500.0,0.00016986,3]
[402308521,1768653071907,-500.0,0.00016986,3]
[402308522,1768653071916,-500.0,0.00016986,3]
[402308523,1768653071926,-871.59,0.00016986,3]
[402308524,1768653071936,-570.88,0.00016986,3]
[402308525,1768653071946,-791.73,0.00016986,3]
[402308526,1768653071956,-849.02,0.00016986,3]
[402308527,1768653071965,-500.0,0.00016986,3]
[402308528,1768653071975,-500.0,0.00016986,3]
[402308529,1768653071987,-1482.88,0.00016986,3]
[402308530,1768653071997,-617.9,0.00016986,3]
[402308531,1768653072006,-500.0,0.00016986,3]
[402308532,1768653072016,-500.0,0.00016986,3]
[402308533,1768653072026,-500.0,0.00016986,3]
[402308534,1768653072035,-500.0,0.00016986,3]
[402308535,1768653072046,-500.0,0.00016986,3]
[402308536,1768653072055,-300.946978,0.00016986,2]
[402308537,1768653072065,-639.49459092,0.00016986,3]
[402308538,1768653072075,-863.5,0.00016986,3]
[402308539,1768653072086,-500.0,0.00016986,3]
[402308540,1768653072096,-753.38,0.00016986,3]
[402308541,1768653072106,-300.946978,0.00016986,2]
[402308542,1768653072116,-500.0,0.00016986,3]
[402308543,1768653072125,-500.0,0.00016986,2]
[402308544,1768653072136,-500.0,0.00016986,3]
[402308545,1768653072146,-1911.71,0.00016986,3]
[402308546,1768653072156,-500.0,0.00016986,3]
[402308547,1768653072166,-500.0,0.00016986,3]
[402308548,1768653072176,-14952.36,0.00016986,3]
[402308549,1768653072186,-626.66664619,0.00016986,3]
[402308550,1768653072198,-500.0,0.00016986,3]
[402308551,1768653072208,-300.946978,0.00016986,2]
[402308552,1768653072218,-500.0,0.00016986,3]
[402308553,1768653072228,-500.0,0.00016986,2]
[402308554,1768653072238,-300.946978,0.00016986,2]
[402308555,1768653072248,-501.88,0.00016986,3]
[402308556,1768653072258,-500.0,0.00016986,3]
[402308557,1768653072267,-871.62,0.00016986,3]
[402308558,1768653072277,-500.0,0.00016986,3]
[402308559,1768653072286,-530.71,0.00016986,3]
[402308560,1768653072295,-634.18,0.00016986,3]
[402308561,1768653072305,-1429.84,0.00016986,3]
[402308562,1768653072315,-500.0,0.00016986,3]
[402308563,1768653072325,-500.0,0.00016986,3]
[402308564,1768653072335,-500.0,0.00016986,2]
[402308565,1768653072344,-541.87987257,0.00016986,3]
[402308566,1768653072354,-500.0,0.00016986,3]
[402308567,1768653072363,-500.0,0.00016986,3]
[402308568,1768653072372,-500.0,0.00016986,3]
[402308569,1768653072382,-1003.52,0.00016986,3]
[402308570,1768653072391,-565.41,0.00016986,3]
[402308571,1768653072401,-500.0,0.00016986,3]
[402308572,1768653072411,-2006.9,0.00016986,3]
[402308573,1768653072421,-1200.0,0.00016986,2]
[402308574,1768653072430,-3788.27,0.00016986,3]
[402308575,1768653072440,-1094.24,0.00016986,3]
[402308576,1768653072449,-500.0,0.00016986,3]
[402308577,1768653072459,-500.0,0.00016986,3]
[402308578,1768653072468,-500.0,0.00016986,2]
[402308579,1768653072477,-150.12056451,0.00016986,2]
[402308580,1768653072487,-2004.21199472,0.00016986,2]
[402308581,1768653072497,-200.0,0.00017,2]
[402308582,1768653072507,-200.0,0.00017,2]
[402308583,1768653072516,-200.0,0.00017,2]
[402308584,1768653072526,-200.0,0.00017,2]
[402308585,1768653072536,-200.0,0.00017,2]
[402308586,1768653072545,-200.0,0.00017,2]
[402308587,1768653072555,-200.0,0.00017,2]
[402308588,1768653072564,-200.0,0.00017,2]
[402308589,1768653072573,-209.50263211,0.00017,2]
[402308590,1768653072583,-81764.19339649,0.0001701,3]
[402308591,1768653072592,-532.99322969,0.00017064,2]
[402308592,1768653072602,-461.67526834,0.00017114,2]
[402308593,1768653072612,-393.42090435,0.00017114,2]
[402308594,1768653072621,-151.0,0.00017114,2]
[402308595,1768653072631,-2230.315306,0.00017114,2]
[402308596,1768653072640,-31110.0,0.00017114,2]
[402308597,1768653072650,-160.0,0.000172,3]
[402308598,1768653072660,-160.0,0.000172,3]
[402308599,1768653072669,-500.0,0.0001726,3]
[402308600,1768653072679,-500.0,0.0001726,3]
[402308601,1768653072688,-500.0,0.0001726,3]
[402308602,1768653072698,-188.42277333,0.0001726,3]
[402308603,1768653072708,-2566.7487943,0.0001726,2]
[402308604,1768653072717,-500.0,0.0001726,3]
[402308605,1768653072727,-500.0,0.0001726,3]
[402308606,1768653072737,-500.0,0.0001726,3]
[402308607,1768653072746,-500.0,0.0001726,3]
[402308608,1768653072756,-940.35,0.0001726,3]
[402308609,1768653072765,-904.31,0.0001726,3]
[402308610,1768653072775,-214.48714005,0.0001726,3]
[402308611,1768653072784,-500.0,0.0001726,3]
[402308612,1768653072794,-1000.0,0.0001726,2]
[402308613,1768653072803,-500.0,0.0001726,3]
[402308614,1768653072812,-500.0,0.0001726,3]
[402308615,1768653072822,-500.0,0.0001726,3]
[402308616,1768653072832,-557.26,0.0001726,3]
[402308617,1768653072842,-500.0,0.0001726,3]
[402308618,1768653072852,-524.86,0.0001726,3]
[402308619,1768653072870,-500.0,0.0001726,3]
[402308620,1768653072882,-953.58,0.0001726,3]
[402308621,1768653072893,-500.0,0.0001726,3]
[402308622,1768653072903,-500.0,0.0001726,3]
[402308623,1768653072914,-587.21,0.0001726,3]
[402308624,1768653072925,-510.56,0.0001726,3]
[402308625,1768653072935,-1541.12,0.0001726,3]
[402308626,1768653072945,-1016.13,0.0001726,3]
[402308627,1768653072955,-500.0,0.0001726,3]
[402308628,1768653072965,-500.0,0.0001726,3]
[402308629,1768653072975,-500.0,0.0001726,3]
[402308630,1768653072985,-4406.0969224,0.0001726,2]
[402308631,1768653072995,-500.0,0.0001726,3]
[402308632,1768653073005,-500.0,0.0001726,3]
[402308633,1768653073015,-1289.75,0.0001726,3]
[402308634,1768653073025,-500.55,0.0001726,3]
[402308635,1768653073035,-500.0,0.0001726,3]
[402308636,1768653073044,-595.44134723,0.0001726,3]
[402308637,1768653073054,-500.0,0.0001726,3]
[402308638,1768653073064,-667.06,0.0001726,3]
[402308639,1768653073074,-500.0,0.0001726,3]
[402308640,1768653073084,-500.0,0.0001726,3]
[402308641,1768653073094,-500.0,0.0001726,3]
[402308642,1768653073104,-500.0,0.0001726,3]
[402308643,1768653073114,-500.0,0.0001726,3]
[402308644,1768653073124,-231.71584647,0.0001726,3]
[402308645,1768653073134,-500.0,0.0001726,3]
[402308646,1768653073144,-500.0,0.0001726,3]
[402308647,1768653073154,-500.0,0.0001726,3]
[402308648,1768653073165,-500.0,0.0001726,3]
[402308649,1768653073175,-500.0,0.0001726,3]
[402308650,1768653073185,-500.0,0.0001726,3]
[402308651,1768653073196,-1232.8343314,0.0001726,2]
[402308652,1768653073208,-1507.14,0.0001726,3]
[402308653,1768653073218,-500.0,0.0001726,3]
[402308654,1768653073229,-500.0,0.0001726,3]
[402308655,1768653073240,-500.0,0.0001726,3]
[402308656,1768653073250,-740.56,0.0001726,3]
[402308657,1768653073261,-500.0,0.0001726,3]
[402308658,1768653073271,-681.74,0.0001726,3]
[402308659,1768653073281,-500.0,0.0001726,3]
[402308660,1768653073292,-915.36,0.0001726,3]
[402308661,1768653073304,-544.01,0.0001726,3]
[402308662,1768653073316,-500.0,0.0001726,3]
[402308663,1768653073326,-500.0,0.0001726,3]
[402308664,1768653073336,-297.32226087,0.0001726,3]
[402308665,1768653073347,-500.0,0.0001726,3]
[402308666,1768653073357,-1262.64,0.0001726,3]
[402308667,1768653073367,-500.0,0.0001726,3]
[402308668,1768653073378,-500.0,0.0001726,3]
[402308669,1768653073388,-500.0,0.0001726,3]
[402308670,1768653073398,-500.0,0.0001726,3]
[402308671,1768653073408,-850.25,0.0001726,3]
[402308672,1768653073417,-500.0,0.0001726,3]
[402308673,1768653073427,-500.0,0.0001726,3]
[402308674,1768653073437,-649.2,0.0001726,3]
[402308675,1768653073448,-500.0,0.0001726,3]
[402308676,1768653073458,-500.0,0.0001726,3]
[402308677,1768653073468,-784.71,0.0001726,3]
[402308678,1768653073479,-500.0,0.0001726,3]
[402308679,1768653073490,-500.0,0.0001726,3]
[402308680,1768653073502,-500.0,0.0001726,3]
[402308681,1768653073518,-825.73,0.0001726,3]
[402308682,1768653073529,-609.64,0.0001726,3]
[402308683,1768653073540,-304.89462711,0.0001726,3]
[402308684,1768653073551,-500.0,0.0001726,3]
[402308685,1768653073561,-500.0,0.0001726,3]
[402308686,1768653073572,-904.51,0.0001726,3]
[402308687,1768653073582,-500.0,0.0001726,3]
[402308688,1768653073593,-995.62,0.0001726,3]
[402308689,1768653073604,-500.0,0.0001726,3]
[402308690,1768653073614,-875.03,0.0001726,3]
[402308691,1768653073625,-582.69,0.0001726,3]
[402308692,1768653073635,-500.0,0.0001726,3]
[402308693,1768653073646,-848.03,0.0001726,3]
[402308694,1768653073657,-500.0,0.0001726,3]
[402308695,1768653073667,-500.0,0.0001726,3]
[402308696,1768653073678,-500.0,0.0001726,3]
[402308697,1768653073688,-464.64297087,0.0001726,3]
[402308698,1768653073700,-350.65309334,0.0001726,3]
[402308699,1768653073711,-500.0,0.0001726,3]
[402308700,1768653073721,-500.0,0.0001726,3]
[402308701,1768653073732,-500.0,0.0001726,3]
[402308702,1768653073744,-500.0,0.0001726,3]
[402308703,1768653073756,-500.0,0.0001726,3]
[402308704,1768653073766,-300.40761524,0.0001726,3]
[402308705,1768653073776,-540.82,0.0001726,3]
[402308706,1768653073787,-500.0,0.0001726,3]
[402308707,1768653073796,-500.0,0.0001726,3]
[402308708,1768653073808,-500.0,0.0001726,3]
[402308709,1768653073819,-1286.45,0.0001726,3]
[402308710,1768653073830,-1184.11,0.0001726,3]
[402308711,1768653073841,-2338.27,0.0001726,3]
[402308712,1768653073853,-500.0,0.0001726,3]
[402308713,1768653073864,-500.0,0.0001726,3]
[402308714,1768653073874,-1074.96,0.0001726,3]
[402308715,1768653073885,-500.0,0.0001726,3]
[402308716,1768653073896,-500.0,0.0001726,3]
[402308717,1768653073908,-939.95,0.0001726,3]
[402308718,1768653073919,-500.0,0.0001726,3]
[402308719,1768653073930,-648.04,0.0001726,3]
[402308720,1768653073941,-1305.23,0.0001726,3]
[402308721,1768653073952,-500.0,0.0001726,3]
[402308722,1768653073962,-713.54,0.0001726,3]
[402308723,1768653073973,-500.0,0.0001726,3]
[402308724,1768653073983,-500.0,0.0001726,3]
[402308725,1768653073994,-500.0,0.0001726,3]
[402308726,1768653074005,-617.87,0.0001726,3]
[402308727,1768653074015,-500.0,0.0001726,3]
[402308728,1768653074027,-500.0,0.0001726,3]
[402308729,1768653074039,-500.0,0.0001726,3]
[402308730,1768653074051,-500.0,0.0001726,3]
[402308731,1768653074062,-580.8,0.0001726,3]
[402308732,1768653074072,-500.0,0.0001726,3]
[402308733,1768653074083,-500.0,0.0001726,3]
[402308734,1768653074093,-500.0,0.0001726,3]
[402308735,1768653074104,-797.95,0.0001726,3]
[402308736,1768653074114,-1586.94,0.0001726,3]
[402308737,1768653074125,-500.0,0.0001726,3]
[402308738,1768653074137,-1834.58,0.0001726,3]
[402308739,1768653074149,-500.0,0.0001726,3]
[402308740,1768653074161,-500.0,0.0001726,3]
[402308741,1768653074175,-1542.76,0.0001726,3]
[402308742,1768653074185,-500.0,0.0001726,3]
[402308743,1768653074195,-500.0,0.0001726,3]
[402308744,1768653074205,-960.56,0.0001726,3]
[402308745,1768653074215,-500.0,0.0001726,3]
[402308746,1768653074225,-500.0,0.0001726,3]
[402308747,1768653074235,-500.0,0.0001726,3]
[402308748,1768653074244,-746.14,0.0001726,3]
[402308749,1768653074254,-500.0,0.0001726,3]
[402308750,1768653074265,-519.01,0.0001726,3]
[402308751,1768653074275,-500.0,0.0001726,3]
[402308752,1768653074285,-2140.55,0.0001726,3]
[402308753,1768653074296,-500.0,0.0001726,3]
[402308754,1768653074309,-500.0,0.0001726,3]
[402308755,1768653074320,-500.0,0.0001726,3]
[402308756,1768653074332,-500.0,0.0001726,3]
[402308757,1768653074346,-500.0,0.0001726,3]
[402308758,1768653074357,-500.0,0.0001726,3]
[402308759,1768653074367,-1225.34,0.0001726,3]
[402308760,1768653074379,-1577.53,0.0001726,3]
[402308761,1768653074389,-500.0,0.0001726,3]
[402308762,1768653074400,-526.57336217,0.0001726,3]
[402308763,1768653074412,-500.0,0.0001726,3]
[402308764,1768653074422,-500.0,0.0001726,2]
[402308765,1768653074433,-500.0,0.0001726,3]
[402308766,1768653074444,-500.0,0.0001726,3]
[402308767,1768653074455,-500.0,0.0001726,3]
[402308768,1768653074465,-500.0,0.0001726,3]
[402308769,1768653074476,-500.0,0.0001726,3]
[402308770,1768653074487,-500.0,0.0001726,3]
[402308771,1768653074497,-500.0,0.0001726,3]
[402308772,1768653074507,-500.0,0.0001726,3]
[402308773,1768653074517,-500.0,0.0001726,3]
[402308774,1768653074536,-500.0,0.0001726,3]
[402308775,1768653074556,-504.11,0.0001726,3]
[402308776,1768653074567,-500.0,0.0001726,3]
[402308777,1768653074579,-500.0,0.0001726,3]
[402308778,1768653074591,-540.84,0.0001726,3]
[402308779,1768653074603,-777.63,0.0001726,3]
[402308780,1768653074616,-500.0,0.0001726,3]
[402308781,1768653074627,-500.0,0.0001726,3]
[402308782,1768653074637,-1359.96,0.0001726,3]
[402308783,1768653074649,-645.08,0.0001726,3]
[402308784,1768653074659,-500.0,0.0001726,3]
[402308785,1768653074670,-500.0,0.0001726,3]
[402308786,1768653074681,-942.63,0.0001726,3]
[402308787,1768653074691,-500.0,0.0001726,3]
[402308788,1768653074702,-500.0,0.0001726,3]
[402308789,1768653074712,-500.0,0.0001726,3]
[402308790,1768653074722,-500.0,0.0001726,3]
[402308791,1768653074732,-782.75,0.0001726,3]
[402308792,1768653074744,-1132.01,0.0001726,3]
[402308793,1768653074757,-500.0,0.0001726,3]
[402308794,1768653074767,-500.0,0.0001726,3]
[402308795,1768653074778,-500.0,0.0001726,3]
[402308796,1768653074789,-500.0,0.0001726,3]
[402308797,1768653074800,-500.0,0.0001726,3]
[402308798,1768653074811,-693.7,0.0001726,3]
[402308799,1768653074823,-500.0,0.0001726,3]
[402308800,1768653074833,-569.47706073,0.0001726,3]
[402308801,1768653074844,-500.0,0.0001726,3]
[402308802,1768653074855,-500.0,0.0001726,3]
[402308803,1768653074866,-500.0,0.0001726,3]
[402308804,1768653074878,-500.0,0.0001726,3]
[402308805,1768653074888,-500.0,0.0001726,3]
[402308806,1768653074898,-500.0,0.0001726,3]
[402308807,1768653074910,-500.0,0.0001726,3]
[402308808,1768653074920,-500.0,0.0001726,3]
[402308809,1768653074931,-1859.94,0.0001726,3]
[402308810,1768653074941,-1210.81,0.0001726,3]
[402308811,1768653074951,-1568.17,0.0001726,3]
[402308812,1768653074962,-500.0,0.0001726,3]
[402308813,1768653074973,-500.0,0.0001726,3]
[402308814,1768653074983,-500.0,0.0001726,3]
[402308815,1768653074993,-500.0,0.0001726,3]
[402308816,1768653075003,-1211.41,0.0001726,3]
[402308817,1768653075014,-1472.9,0.0001726,3]
[402308818,1768653075023,-931.1,0.0001726,3]
[402308819,1768653075033,-500.0,0.0001726,3]
[402308820,1768653075043,-1240.14,0.0001726,3]
[402308821,1768653075054,-500.0,0.0001726,3]
[402308822,1768653075065,-500.0,0.0001726,3]
[402308823,1768653075075,-500.0,0.0001726,3]
[402308824,1768653075085,-582.22,0.0001726,3]
[402308825,1768653075095,-500.0,0.0001726,3]
[402308826,1768653075106,-500.0,0.0001726,3]
[402308827,1768653075116,-500.0,0.0001726,3]
[402308828,1768653075126,-500.0,0.0001726,3]
[402308829,1768653075137,-784.75,0.0001726,3]
[402308830,1768653075147,-775.14,0.0001726,3]
[402308831,1768653075158,-500.0,0.0001726,3]
[402308832,1768653075168,-500.0,0.0001726,3]
[402308833,1768653075181,-500.0,0.0001726,3]
[402308834,1768653075443,-842.12,0.0001726,3]
[402308835,1768653075453,-500.0,0.0001726,3]
[402308836,1768653075462,-500.0,0.0001726,3]
[402308837,1768653075471,-923.41,0.0001726,3]
[402308838,1768653075481,-500.0,0.0001726,3]
[402308839,1768653075490,-500.0,0.0001726,3]
[402308840,1768653075500,-500.0,0.0001726,3]
[402308841,1768653075509,-1782.4,0.0001726,3]
[402308842,1768653075519,-501.51383145,0.0001726,2]
[402308843,1768653075531,-552.83,0.0001726,3]
[402308844,1768653075541,-500.0,0.0001726,3]
[402308845,1768653075550,-500.0,0.0001726,3]
[402308846,1768653075560,-500.0,0.0001726,3]
[402308847,1768653075570,-500.0,0.0001726,3]
[402308848,1768653075580,-500.0,0.0001726,3]
[402308849,1768653075589,-2006.05532581,0.0001726,2]
[402308850,1768653075598,-500.0,0.0001726,3]
[402308851,1768653075608,-518.59,0.0001726,3]
[402308852,1768653075617,-721.62,0.0001726,3]
[402308853,1768653075626,-4509.11085859,0.0001726,2]
[402308854,1768653075635,-1040.39,0.0001726,3]
[402308855,1768653075645,-500.0,0.0001726,3]
[402308856,1768653075655,-2007.96,0.0001726,3]
[402308857,1768653075664,-1158.63,0.0001726,3]
[402308858,1768653075674,-574.44,0.0001726,3]
[402308859,1768653075683,-500.0,0.0001726,3]
[402308860,1768653075692,-271.88452189,0.0001726,3]
[402308861,1768653075706,-533.25,0.0001726,3]
[402308862,1768653075714,-500.0,0.0001726,3]
[402308863,1768653075723,-500.0,0.0001726,3]
[402308864,1768653075734,-1776.82,0.0001726,3]
[402308865,1768653075746,-500.0,0.0001726,3]
[402308866,1768653075756,-158.66112729,0.0001726,3]
[402308867,1768653075766,-538.55531083,0.0001726,3]
[402308868,1768653075777,-628.44,0.0001726,3]
[402308869,1768653075787,-706.91,0.0001726,3]
[402308870,1768653075797,-781.61,0.0001726,3]
[402308871,1768653075808,-500.0,0.0001726,3]
[402308872,1768653075819,-617.92,0.0001726,3]
[402308873,1768653075828,-727.95,0.0001726,3]
[402308874,1768653075838,-500.0,0.0001726,3]
[402308875,1768653075849,-500.0,0.0001726,3]
[402308876,1768653075860,-630.14,0.0001726,3]
[402308877,1768653075869,-417.85698666,0.0001726,3]
[402308878,1768653075878,-500.0,0.0001726,3]
[402308879,1768653075887,-1251.31,0.0001726,3]
[402308880,1768653075896,-1417.89,0.0001726,3]
[402308881,1768653075906,-500.0,0.0001726,3]
[402308882,1768653075915,-577.84,0.0001726,3]
[402308883,1768653075926,-973.16,0.0001726,3]
[402308884,1768653075936,-500.0,0.0001726,3]
[402308885,1768653075946,-1088.19,0.0001726,3]
[402308886,1768653075956,-1036.96,0.0001726,3]
[402308887,1768653075966,-1329.23,0.0001726,3]
[402308888,1768653075976,-500.0,0.0001726,3]
[402308889,1768653075987,-480.06845953,0.0001726,3]
[402308890,1768653075997,-529.66608909,0.0001726,3]
[402308891,1768653076007,-921.27,0.0001726,3]
[402308892,1768653076018,-1127.31,0.0001726,3]
[402308893,1768653076028,-500.0,0.0001726,3]
[402308894,1768653076038,-1509.89,0.0001726,3]
[402308895,1768653076049,-500.0,0.0001726,3]
[402308896,1768653076060,-529.21482368,0.0001726,3]
[402308897,1768653076070,-520.22,0.0001726,3]
[402308898,1768653076080,-531.74,0.0001726,3]
[402308899,1768653076090,-1025.56,0.0001726,3]
[402308900,1768653076100,-500.0,0.0001726,3]
[402308901,1768653076109,-818.49,0.0001726,3]
[402308902,1768653076119,-500.0,0.0001726,3]
[402308903,1768653076130,-500.0,0.0001726,3]
[402308904,1768653076140,-500.0,0.0001726,3]
[402308905,1768653076150,-700.82,0.0001726,3]
[402308906,1768653076161,-500.0,0.0001726,3]
[402308907,1768653076171,-500.0,0.0001726,3]
[402308908,1768653076181,-500.0,0.0001726,3]
[402308909,1768653076191,-977.67,0.0001726,3]
[402308910,1768653076200,-500.0,0.0001726,3]
[402308911,1768653076212,-630.85,0.0001726,3]
[402308912,1768653076222,-500.0,0.0001726,3]
[402308913,1768653076232,-500.0,0.0001726,3]
[402308914,1768653076242,-500.0,0.0001726,3]
[402308915,1768653076252,-2456.62,0.0001726,3]
[402308916,1768653076262,-619.01,0.0001726,3]
[402308917,1768653076272,-1759.84,0.0001726,3]
[402308918,1768653076283,-500.0,0.0001726,3]
[402308919,1768653076293,-499.99622273,0.0001726,3]
[402308920,1768653076303,-647.1,0.0001726,3]
[402308921,1768653076312,-500.0,0.0001726,3]
[402308922,1768653076323,-1436.74,0.0001726,3]
[402308923,1768653076333,-588.13,0.0001726,3]
[402308924,1768653076343,-500.0,0.0001726,3]
[402308925,1768653076352,-500.0,0.0001726,2]
[402308926,1768653076362,-1441.58,0.0001726,3]
[402308927,1768653076371,-1626.75,0.0001726,3]
[402308928,1768653076381,-500.0,0.0001726,3]
[402308929,1768653076391,-1076.17,0.0001726,3]
[402308930,1768653076400,-619.77,0.0001726,3]
[402308931,1768653076410,-2016.32,0.0001726,3]
[402308932,1768653076420,-500.0,0.0001726,3]
[402308933,1768653076430,-500.0,0.0001726,3]
[402308934,1768653076440,-500.0,0.0001726,3]
[402308935,1768653076451,-500.0,0.0001726,3]
[402308936,1768653076461,-1493.38,0.0001726,3]
[402308937,1768653076471,-500.0,0.0001726,3]
[402308938,1768653076481,-500.0,0.0001726,3]
[402308939,1768653076491,-523.78,0.0001726,3]
[402308940,1768653076500,-500.0,0.0001726,3]
[402308941,1768653076512,-1066.54,0.0001726,3]
[402308942,1768653076521,-500.0,0.0001726,3]
[402308943,1768653076532,-500.0,0.0001726,3]
[402308944,1768653076542,-500.0,0.0001726,3]
[402308945,1768653076552,-500.0,0.0001726,3]
[402308946,1768653076561,-500.0,0.0001726,3]
[402308947,1768653076571,-1293.83,0.0001726,3]
[402308948,1768653076582,-512.95426722,0.0001726,3]
[402308949,1768653076591,-500.0,0.0001726,3]
[402308950,1768653076601,-1150.99,0.0001726,3]
[402308951,1768653076611,-944.2,0.0001726,3]
[402308952,1768653076620,-1047.08,0.0001726,3]
[402308953,1768653076630,-500.0,0.0001726,3]
[402308954,1768653076640,-670.52167221,0.0001726,2]
[402308955,1768653076652,-500.0,0.0001726,3]
[402308956,1768653076662,-500.0,0.0001726,3]
[402308957,1768653076672,-500.0,0.0001726,3]
[402308958,1768653076681,-2682.08668884,0.0001726,2]
[402308959,1768653076692,-500.0,0.0001726,3]
[402308960,1768653076702,-2703.42,0.0001726,3]
[402308961,1768653076712,-1993.96,0.0001726,3]
[402308962,1768653076722,-774.73,0.0001726,3]
[402308963,1768653076731,-6034.6950499,0.0001726,2]
[402308964,1768653076741,-500.0,0.0001726,3]
[402308965,1768653076749,-500.0,0.0001726,3]
[402308966,1768653076758,-848.49,0.0001726,3]
[402308967,1768653076768,-500.0,0.0001726,3]
[402308968,1768653076779,-617.76,0.0001726,3]
[402308969,1768653076788,-500.0,0.0001726,3]
[402308970,1768653076798,-500.0,0.0001726,3]
[402308971,1768653076808,-500.0,0.0001726,3]
[402308972,1768653076818,-847.18,0.0001726,3]
[402308973,1768653076828,-500.0,0.0001726,3]
[402308974,1768653076837,-500.0,0.0001726,3]
[402308975,1768653076846,-1000.0,0.0001726,2]
[402308976,1768653076855,-834.37,0.0001726,3]
[402308977,1768653076865,-500.0,0.0001726,3]
[402308978,1768653076874,-500.0,0.0001726,3]
[402308979,1768653076884,-500.0,0.0001726,3]
[402308980,1768653076894,-1719.9,0.0001726,3]
[402308981,1768653076903,-618.91,0.0001726,3]
[402308982,1768653076913,-771.05,0.0001726,3]
[402308983,1768653076923,-500.0,0.0001726,3]
[402308984,1768653076932,-500.0,0.0001726,3]
[402308985,1768653076943,-154.03719813,0.0001726,3]
[402308986,1768653076953,-1140.43,0.0001726,3]
[402308987,1768653076961,-500.0,0.0001726,3]
[402308988,1768653076971,-500.0,0.0001726,3]
[402308989,1768653076980,-523.35,0.0001726,3]
[402308990,1768653076989,-514.45,0.0001726,3]
[402308991,1768653076999,-500.0,0.0001726,3]
[402308992,1768653077007,-500.0,0.0001726,3]
[402308993,1768653077016,-500.0,0.0001726,3]
[402308994,1768653077026,-1709.81,0.0001726,3]
[402308995,1768653077035,-500.0,0.0001726,3]
[402308996,1768653077044,-1132.82,0.0001726,3]
[402308997,1768653077054,-1287.57,0.0001726,3]
[402308998,1768653077064,-500.0,0.0001726,3]
[402308999,1768653077073,-500.0,0.0001726,3]